{"text_format":"1","workbook":"xlsx","n_sheets":2,"sheets":["Pasiūlymas","Subtiekėjai"],"not_rendered":{"charts":0,"images":0,"macros":1,"external_links":0,"defined_names":0,"comments":0,"pivot_tables":0},"unopened":[],"bounds":{"document_bytes":16777216,"sheet_cells":100000,"rows_first":2000,"rows_last":500,"rows_between":2000,"halvings":0,"cell_chars":16384,"cell_head_chars":4096},"cells_cut":0,"cells_raw":0,"read":"whole","date_system":"1900"}

{"sheet":"Pasiūlymas","index":0,"n_rows":1283,"n_cols":13,"rows_kept":1283,"cut":false,"hidden":false,"merged":[[18,2,18,4],[19,0,19,1],[19,2,19,4],[15,0,15,1],[15,2,15,4],[16,0,16,1],[16,2,16,4],[17,0,17,1],[17,2,17,4],[28,1,28,7],[444,1,444,7],[1068,1,1068,7],[9,0,9,1],[9,2,9,4],[10,0,10,1],[10,2,10,4],[11,0,11,1],[11,2,11,4],[12,0,12,1],[12,2,12,4],[13,0,13,1],[13,2,13,4],[14,0,14,1],[14,2,14,4],[18,0,18,1]]}
["Perkantysis subjektas, kuriam teikiamas pasiūlymas:",null,"VŠĮ Kauno klinikinė ligoninė"]
[]
[null,"PASIŪLYMAS"]
[null,"Ortopedinių traumatologinių implantų pirkimas"]
[]
["Data:","2019.07.12"]
["Nr.:"]
["Vieta:","Vilnius"]
[]
["Tiekėjo arba tiekėjų grupės narių pavadinimas (-ai)",null,"UAB Kristameda"]
["Tiekėjo arba tiekėjo grupės narių juridinio asmens kodas (-ai) (tuo atveju, jei pasiūlymą teikia fizinis asmuo - verslo pažymėjimo Nr. ar pan.)",null,301245735]
["Tiekėjo arba tiekėjo grupės narių PVM mokėtojo kodas (-ai)",null,"LT100003755213"]
["Tiekėjų grupės narys, atstovaujantis arba vadovaujantis  tiekėjų grupei (pildoma, jei pasiūlymą teikia tiekėjų grupė)"]
["Tiekėjo valdymo ar priežiūros organo narys (-iai) ar kitas asmuo (-ys), turintis (-ys) teisę atstovauti tiekėjui ar jį kontroliuoti, jo vardu priimti sprendimą, sudaryti sandorį"]
["Tiekėjo arba atstovaujančio tiekėjų grupės nario adresas, telefono numeris, fakso numeris, el. paštas",null,"Treniotos g. 33, 08115 Vilnius; 8 600 68931; kristameda@gmail.com"]
["Tiekėjo arba atstovaujančio tiekėjų grupės nario banko pavadinimas, banko kodas, sąskaitos Nr.",null,"LT157044060008231151, AB SEB bankas"]
["Asmens, įgalioto pasirašyti sutartį, vardas, pavardė, pareigos",null,"Direktorius Gintaras Vaitkevičius"]
["Asmens, atsakingo už pirkimą, vardas, pavardė,  telefono numeris, el. paštas",null,"Gintaras Vaitkevičius, 8 600 68931, kristameda@gmail.com"]
[]
[]
[]
[]
[]
["Siūlomas pirkimo objektas visiškai atitinka pirkimo sąlygose nustatytus reikalavimus ir jo kaina yra:"]
[]
[]
[null,null,null,null,null,null,null,null,null,null,"","",""]
["Nr.","Pavadinimas","Maksimalus kiekis","Mato vienetas","Vieneto kaina be PVM, Eur","Suma be PVM, Eur","Siūlomos prekės pavadinimas, gamintojas, prekės kodas, katalogo psl.","Siūlomo produkto parametrai"]
[null,null,null,null,null,null,null,null,null,""]
[]
[]
[null,null,null,null,null,null,null,null,null,""]
[null,null,null,null,null,null,null,null,null,null,null,""]
[null,null,null,null,null,null,null,null,null,null,null,""]
[null,null,null,null,null,null,null,null,null,"","",""]
[null,null,null,null,null,null,null,null,null,"","",""]
[null,null,null,null,null,null,null,null,null,"","",""]
[]
[]
[null,null,null,null,null,null,null,null,null,""]
[]
[null,null,null,null,null,null,null,null,null,null,null,""]
[null,null,null,null,null,null,null,null,null,"",null,""]
[null,null,null,null,null,null,null,null,null,null,null,""]
[]
[null,null,null,null,null,null,null,null,null,"","",""]
[null,null,null,null,null,null,null,null,null,"","",""]
[null,null,null,null,null,null,null,null,null,"","",""]
[]
[]
[]
[]
[]
[]
[]
[]
[]
[]
[]
[]
[]
[]
[]
[]
[]
[]
[]
[]
[]
[]
[]
[]
[]
[]
[]
[]
[]
[]
[]
[]
[]
[]
[]
[]
[]
[]
[]
[]
[]
[]
[]
[]
[]
[]
[]
[]
[]
[]
[]
[]
[]
[]
[]
[]
[]
[]
[]
[]
[]
[]
[]
[]
[]
[]
[]
[]
[]
[]
[]
[]
[]
[]
[]
[]
[]
[]
[]
[]
[]
[]
[]
[]
[]
[]
[]
[]
[]
[]
[]
[]
[]
[]
[]
[]
[]
[]
[]
[]
[]
[]
[]
[]
[]
[]
[]
[]
[]
[]
[]
[]
[]
[]
[]
[]
[]
[]
[]
[]
[]
[]
[]
[]
[]
[]
[]
[]
[]
[]
[]
[]
[]
[]
[]
[]
[]
[]
[]
[]
[]
[]
[]
[]
[]
[]
[]
[]
[]
[]
[]
[]
[]
[]
[]
[]
[]
[]
[]
[]
[]
[]
[]
[]
[]
[]
[]
[]
[]
[]
[]
[]
[]
[]
[]
[]
[]
[]
[]
[]
[]
[]
[]
[]
[]
[]
[]
[]
[]
[]
[]
[]
[]
[]
[]
[]
[]
[]
[]
[]
[]
[]
[]
[]
[]
[]
[]
[]
[]
[]
[]
[]
[]
[]
[]
[]
[]
[]
[]
[]
[]
[]
[]
[]
[]
[]
[]
[]
[]
[]
[]
[]
[]
[]
[]
[]
[]
[]
[]
[]
[]
[]
[]
[]
[]
[]
[]
[]
[]
[]
[]
[]
[]
[]
[]
[]
[]
[]
[]
[]
[]
[]
[]
[]
[]
[]
[]
[]
[]
[]
[]
[]
[]
[]
[]
[]
[]
[]
[]
[]
[]
[]
[]
[]
[]
[]
[]
[]
[]
[]
[]
[]
[]
[]
[]
[]
[]
[]
[]
[]
[]
[]
[]
[]
[]
[]
[]
[]
[]
[]
[]
[]
[]
[]
[]
[]
[]
[]
[]
[]
[]
[]
[]
[]
[]
[]
[]
[]
[]
[]
[]
[]
[]
[]
[]
[]
[]
[]
[]
[]
[]
[]
[]
[]
[]
[]
[]
[]
[]
[]
[]
[]
[]
[]
[]
[]
[]
[]
[]
[]
[]
[]
[]
[]
[]
[]
[]
[]
[]
[]
[]
[]
[]
[]
[]
[]
[]
[]
[]
[]
[]
[]
[]
[]
[]
[]
[]
[]
[]
[]
[]
[]
[]
[]
[]
[]
[]
[]
[]
[]
[]
[]
[]
[]
[]
[]
[]
[]
[]
[]
[]
[]
[]
[]
[]
[]
[]
[]
[]
[]
[]
[]
[]
[]
[]
[]
[]
[]
[]
[]
[]
[]
[]
[]
[]
[]
[]
[]
[]
[]
[]
[]
[]
[]
[]
[]
[]
[]
[]
[]
[]
[]
[]
[]
[]
[]
[]
[]
[]
[]
[]
[]
[]
[]
[]
[]
[]
[]
[]
[]
[]
[]
[]
[]
[]
[]
[]
[]
[]
[]
[]
[]
[]
[]
[]
[]
[]
[]
[]
[]
[]
[]
[]
[]
[]
[]
[]
[]
[]
[]
[]
[]
[]
[]
[]
[]
[]
[]
[]
[]
[]
[]
[]
[]
[]
[]
[]
[]
[]
[]
[]
[]
[]
[]
[]
[]
[]
[]
[]
[]
[]
[]
[]
[]
[]
[]
[]
[]
[]
[]
[]
[]
[]
[]
[]
[]
[]
[]
[]
[]
[]
[]
[]
[]
[]
[]
[]
[]
[]
[]
[]
[]
[]
[]
[]
[]
[]
[]
[]
[]
[]
[]
[]
[]
[]
[]
[]
[]
[]
[]
[]
[]
[]
[]
[]
[]
[]
[]
[]
[]
[]
[]
[]
[]
[]
[]
[]
[]
[]
[]
[]
[]
[]
[]
[]
[]
[]
[]
[]
[]
[]
[]
[]
[]
[]
[]
[]
[]
[]
[]
[]
[]
[]
[]
[]
[]
[]
[]
[]
[]
[]
[]
[]
[]
[]
[]
[]
[]
[]
[]
[]
[]
[]
[]
[]
[]
[]
[]
[]
[]
[]
[]
[]
[]
[]
[]
[]
[]
[]
[]
[]
[]
[]
[]
[]
[]
[]
[]
[]
[]
[]
[]
[]
[]
[]
[]
[]
[]
[]
[]
[]
[]
[]
[]
[]
[]
[]
[]
[]
[]
[]
[]
[]
[]
[]
[]
[]
[]
[]
[]
[]
[]
[]
[]
[]
[]
[]
[]
[]
[]
[]
[]
[]
[]
[]
[]
[]
[]
[]
[]
[]
[]
[]
[]
[]
[]
[]
[]
[]
[]
[]
[]
[]
[]
[]
[]
[]
[]
[]
[]
[]
[]
[]
[]
[]
[]
[]
[]
[]
[]
[]
[]
[]
[]
[]
[]
[]
[]
[]
[]
[]
[]
[]
[]
[]
[]
[]
[]
[]
[]
[]
[]
[]
[]
[]
[]
[]
[]
[]
[]
[]
[]
[]
[]
[]
[]
[]
[]
[]
[]
[]
[]
[]
[]
[]
[]
[]
[]
[]
[]
[]
[]
[]
[]
[]
[]
[]
[]
[]
[]
[]
[]
[]
[]
[]
[]
[]
[]
[]
[]
[]
[]
[]
[]
[]
[]
[]
[]
[]
[]
[]
[]
[]
[]
[]
[]
[]
[]
[]
[]
[]
[]
[]
[]
[]
[]
[]
[]
[]
[]
[]
[]
[]
[]
[]
[]
[]
[]
[]
[]
[]
[]
[]
[]
[]
[]
[]
[]
[]
[]
[]
[]
[]
[]
[]
[]
[]
[]
[]
[]
[]
[]
[]
[]
[]
[]
[]
[]
[]
[]
[]
[]
[]
[]
[]
[]
[]
[]
[]
[]
[]
[]
[]
[]
[]
[]
[]
[]
[]
[]
[]
[]
[]
[]
[]
[]
[]
[]
[]
[]
[]
[]
[]
[]
[]
[]
[]
[]
[]
[]
[]
[]
[]
[]
[]
[]
[]
[]
[]
[]
[]
[]
[]
[]
[]
[]
[]
[]
[]
[]
[]
[]
[]
[]
[]
[]
[]
[]
[]
[]
[]
[]
[]
[]
[]
[]
[]
[]
[]
[]
[]
[]
[]
[]
[]
[]
[]
[]
[]
[]
[]
[]
[]
[]
[]
[]
[]
[]
[]
[]
[]
[]
[]
[]
[]
[]
[]
[]
[]
[]
[]
[]
[]
[]
[]
[]
[]
[]
[]
[]
[]
[]
[]
[]
[]
[]
[]
[]
[]
[]
["3.","Plokštelės, sraigtai, instrumentai"]
["3.1.","T formos užrakinama kompresinė plokštelė, įstrižu kampu, pagaminta iš titano.  5 užrakinamos kiaurymės “galvoje”, vienoje eilėje. Fiksuojama Ø 2,7 mm užrakinamais ir Ø 2,7 mm kortikaliniais sraigtais.",6,"vnt",115.43,{"$f":"IF(ISBLANK(E1070),\"\", PRODUCT(C1070,E1070))","v":692.58},"22572103, 22572104 katalogas 1, p. 73, Changzhou Kanghui Medical Innovation Co., Ltd. a Medtronic company","T formos užrakinama kompresinė plokštelė, įstrižu kampu, pagaminta iš titano.  5 užrakinamos kiaurymės “galvoje”, vienoje eilėje. Fiksuojama Ø 2,7 mm užrakinamais ir Ø 2,7 mm kortikaliniais sraigtais. Dešinės pusės, 3, 4 kiaurymių"]
["3.1.1.","Dešinės pusės, 3-4 kiaurymių"]
["3.2.","T formos užrakinama kompresinė plokštelė, įstrižu kampu, pagaminta iš titano.  5 užrakinamos kiaurymės “galvoje”, vienoje eilėje. Fiksuojama Ø 2,7 mm užrakinamais ir Ø 2,7 mm kortikaliniais sraigtais.",4,"vnt",115.43,{"$f":"IF(ISBLANK(E1072),\"\", PRODUCT(C1072,E1072))","v":461.72},"22572105, 22572106, katalogas 1, p. 73, Changzhou Kanghui Medical Innovation Co., Ltd. a Medtronic company","T formos užrakinama kompresinė plokštelė, įstrižu kampu, pagaminta iš titano.  5 užrakinamos kiaurymės “galvoje”, vienoje eilėje. Fiksuojama Ø 2,7 mm užrakinamais ir Ø 2,7 mm kortikaliniais sraigtais. Dešinės pusės, 5, 6 kiaurymių"]
["3.2.1.","Dešinės pusės, 5-6 kiaurymių"]
["3.3.","T formos užrakinama kompresinė plokštelė, įstrižu kampu, pagaminta iš titano.  5 užrakinamos kiaurymės “galvoje”, vienoje eilėje. Fiksuojama Ø 2,7 mm užrakinamais ir Ø 2,7 mm kortikaliniais sraigtais.",6,"vnt",115.43,{"$f":"IF(ISBLANK(E1074),\"\", PRODUCT(C1074,E1074))","v":692.58},"22572203, 22572204 katalogas 1, p. 73, Changzhou Kanghui Medical Innovation Co., Ltd. a Medtronic company","T formos užrakinama kompresinė plokštelė, įstrižu kampu, pagaminta iš titano.  5 užrakinamos kiaurymės “galvoje”, vienoje eilėje. Fiksuojama Ø 2,7 mm užrakinamais ir Ø 2,7 mm kortikaliniais sraigtais. Kairės pusės, 3, 4 kiaurymių"]
["3.3.1.","Kairės pusės, 3-4 kiaurymių"]
["3.4.","T formos užrakinama kompresinė plokštelė, įstrižu kampu, pagaminta iš titano.  5 užrakinamos kiaurymės “galvoje”, vienoje eilėje. Fiksuojama Ø 2,7 mm užrakinamais ir Ø 2,7 mm kortikaliniais sraigtais.",4,"vnt",115.43,{"$f":"IF(ISBLANK(E1076),\"\", PRODUCT(C1076,E1076))","v":461.72},"22572205, 22572206 katalogas 1, p. 73, Changzhou Kanghui Medical Innovation Co., Ltd. a Medtronic company","T formos užrakinama kompresinė plokštelė, įstrižu kampu, pagaminta iš titano.  5 užrakinamos kiaurymės “galvoje”, vienoje eilėje. Fiksuojama Ø 2,7 mm užrakinamais ir Ø 2,7 mm kortikaliniais sraigtais. Kairės pusės, 5, 6 kiaurymių"]
["3.4.1.","Kairės pusės, 5-6 kiaurymių"]
["3.5.","Stipinkaulio distalinio galo šoninė užrakinama plokštelė, pagaminta iš titano. Fiksuojama Ø 2,7 mm užrakinamais ir Ø 2,7 mm kortikaliniais sraigtais.",2,"vnt",105.11,{"$f":"IF(ISBLANK(E1078),\"\", PRODUCT(C1078,E1078))","v":210.22},"22555005, katalogas 1, p. 72, Changzhou Kanghui Medical Innovation Co., Ltd. a Medtronic company","Stipinkaulio distalinio galo šoninė užrakinama plokštelė, pagaminta iš titano. Fiksuojama Ø 2,7 mm užrakinamais ir Ø 2,7 mm kortikaliniais sraigtais. 5 kiaurymių"]
["3.5.1.","5 kiaurymių"]
["3.6.","Stipinkaulio distalinio galo šoninė užrakinama plokštelė, pagaminta iš titano. Fiksuojama Ø 2,7 mm užrakinamais ir Ø 2,7 mm kortikaliniais sraigtais.",2,"vnt",105.11,{"$f":"IF(ISBLANK(E1080),\"\", PRODUCT(C1080,E1080))","v":210.22},"22555006, katalogas 1, p. 72, Changzhou Kanghui Medical Innovation Co., Ltd. a Medtronic company","Stipinkaulio distalinio galo šoninė užrakinama plokštelė, pagaminta iš titano. Fiksuojama Ø 2,7 mm užrakinamais ir Ø 2,7 mm kortikaliniais sraigtais. 6 kiaurymių"]
["3.6.1.","6 kiaurymių"]
["3.7.","Stipinkaulio distalinio galo dorsalinė užrakinama kompresinė plokštelė, 90° L formos, pagaminta iš titano. 2 kiaurymės distalinėje dalyje. Fiksuojama Ø 2,7 mm užrakinamais ir Ø 2,7 mm kortikaliniais sraigtais.",5,"vnt",104.95,{"$f":"IF(ISBLANK(E1082),\"\", PRODUCT(C1082,E1082))","v":524.75},"22558203, katalogas 1, p. 73, Changzhou Kanghui Medical Innovation Co., Ltd. a Medtronic company","Stipinkaulio distalinio galo dorsalinė užrakinama kompresinė plokštelė, 90° L formos, pagaminta iš titano. 2 kiaurymės distalinėje dalyje. Fiksuojama Ø 2,7 mm užrakinamais ir Ø 2,7 mm kortikaliniais sraigtais. Kairės pusės, 3 kiaurymių"]
["3.7.1.","Kairės pusės, 3 kiaurymių"]
["3.8.","Stipinkaulio distalinio galo dorsalinė užrakinama kompresinė plokštelė, 90° L formos, pagaminta iš titano. 2 kiaurymės distalinėje dalyje. Fiksuojama Ø 2,7 mm užrakinamais ir Ø 2,7 mm kortikaliniais sraigtais.",12,"vnt",104.95,{"$f":"IF(ISBLANK(E1084),\"\", PRODUCT(C1084,E1084))","v":1259.4000000000001},"22558204, katalogas 1, p. 73, Changzhou Kanghui Medical Innovation Co., Ltd. a Medtronic company","Stipinkaulio distalinio galo dorsalinė užrakinama kompresinė plokštelė, 90° L formos, pagaminta iš titano. 2 kiaurymės distalinėje dalyje. Fiksuojama Ø 2,7 mm užrakinamais ir Ø 2,7 mm kortikaliniais sraigtais. Kairės pusės, 4 kiaurymių"]
["3.8.1.","Kairės pusės, 4 kiaurymių"]
["3.9.","Stipinkaulio distalinio galo dorsalinė užrakinama kompresinė plokštelė, 90° L formos, pagaminta iš titano. 2 kiaurymės distalinėje dalyje. Fiksuojama Ø 2,7 mm užrakinamais ir Ø 2,7 mm kortikaliniais sraigtais.",5,"vnt",104.95,{"$f":"IF(ISBLANK(E1086),\"\", PRODUCT(C1086,E1086))","v":524.75},"22558103, katalogas 1, p. 73, Changzhou Kanghui Medical Innovation Co., Ltd. a Medtronic company","Stipinkaulio distalinio galo dorsalinė užrakinama kompresinė plokštelė, 90° L formos, pagaminta iš titano. 2 kiaurymės distalinėje dalyje. Fiksuojama Ø 2,7 mm užrakinamais ir Ø 2,7 mm kortikaliniais sraigtais. Dešinės pusės, 3 kiaurymių"]
["3.9.1.","Dešinės pusės, 3 kiaurymių"]
["3.10.","Stipinkaulio distalinio galo dorsalinė užrakinama kompresinė plokštelė, 90° L formos, pagaminta iš titano. 2 kiaurymės distalinėje dalyje. Fiksuojama Ø 2,7 mm užrakinamais ir Ø 2,7 mm kortikaliniais sraigtais.",12,"vnt",104.95,{"$f":"IF(ISBLANK(E1088),\"\", PRODUCT(C1088,E1088))","v":1259.4000000000001},"22558104, katalogas 1, p. 73, Changzhou Kanghui Medical Innovation Co., Ltd. a Medtronic company","Stipinkaulio distalinio galo dorsalinė užrakinama kompresinė plokštelė, 90° L formos, pagaminta iš titano. 2 kiaurymės distalinėje dalyje. Fiksuojama Ø 2,7 mm užrakinamais ir Ø 2,7 mm kortikaliniais sraigtais. Dešinės pusės, 4 kiaurymių"]
["3.10.1.","Dešinės pusės, 4 kiaurymių"]
["3.11.","Stipinkaulio distalinio galo dorsalinė užrakinama kompresinė plokštelė, 106° L formos, pagaminta iš titano. 3 kiaurymės distalinėje dalyje. Fiksuojama Ø 2,7 mm užrakinamais ir Ø 2,7 mm kortikaliniais sraigtais.",3,"vnt",104.95,{"$f":"IF(ISBLANK(E1090),\"\", PRODUCT(C1090,E1090))","v":314.85000000000002},"22556203, katalogas 1, p. 72, Changzhou Kanghui Medical Innovation Co., Ltd. a Medtronic company","Stipinkaulio distalinio galo dorsalinė užrakinama kompresinė plokštelė, 106° L formos, pagaminta iš titano. 3 kiaurymės distalinėje dalyje. Fiksuojama Ø 2,7 mm užrakinamais ir Ø 2,7 mm kortikaliniais sraigtais. Kairės pusės, 3 kiaurymių"]
["3.11.1.","Kairės pusės, 3 kiaurymių"]
["3.12.","Stipinkaulio distalinio galo dorsalinė užrakinama kompresinė plokštelė, 106° L formos, pagaminta iš titano. 3 kiaurymės distalinėje dalyje. Fiksuojama Ø 2,7 mm užrakinamais ir Ø 2,7 mm kortikaliniais sraigtais.",2,"vnt",104.95,{"$f":"IF(ISBLANK(E1092),\"\", PRODUCT(C1092,E1092))","v":209.9},"22556204, katalogas 1, p. 72, Changzhou Kanghui Medical Innovation Co., Ltd. a Medtronic company","Stipinkaulio distalinio galo dorsalinė užrakinama kompresinė plokštelė, 106° L formos, pagaminta iš titano. 3 kiaurymės distalinėje dalyje. Fiksuojama Ø 2,7 mm užrakinamais ir Ø 2,7 mm kortikaliniais sraigtais. Kairės pusės, 4 kiaurymių"]
["3.12.1.","Kairės pusės, 4 kiaurymių"]
["3.13.","Stipinkaulio distalinio galo dorsalinė užrakinama kompresinė plokštelė, 106° L formos, pagaminta iš titano. 3 kiaurymės distalinėje dalyje. Fiksuojama Ø 2,7 mm užrakinamais ir Ø 2,7 mm kortikaliniais sraigtais.",3,"vnt",104.95,{"$f":"IF(ISBLANK(E1094),\"\", PRODUCT(C1094,E1094))","v":314.85000000000002},"22556103, katalogas 1, p. 72, Changzhou Kanghui Medical Innovation Co., Ltd. a Medtronic company","Stipinkaulio distalinio galo dorsalinė užrakinama kompresinė plokštelė, 106° L formos, pagaminta iš titano. 3 kiaurymės distalinėje dalyje. Fiksuojama Ø 2,7 mm užrakinamais ir Ø 2,7 mm kortikaliniais sraigtais. Dešinės pusės, 3 kiaurymių"]
["3.13.1.","Dešinės pusės, 3 kiaurymių"]
["3.14.","Stipinkaulio distalinio galo dorsalinė užrakinama kompresinė plokštelė, 106° L formos, pagaminta iš titano. 3 kiaurymės distalinėje dalyje. Fiksuojama Ø 2,7 mm užrakinamais ir Ø 2,7 mm kortikaliniais sraigtais.",2,"vnt",104.95,{"$f":"IF(ISBLANK(E1096),\"\", PRODUCT(C1096,E1096))","v":209.9},"22556104, katalogas 1, p. 72, Changzhou Kanghui Medical Innovation Co., Ltd. a Medtronic company","Stipinkaulio distalinio galo dorsalinė užrakinama kompresinė plokštelė, 106° L formos, pagaminta iš titano. 3 kiaurymės distalinėje dalyje. Fiksuojama Ø 2,7 mm užrakinamais ir Ø 2,7 mm kortikaliniais sraigtais. Dešinės pusės, 4 kiaurymių"]
["3.14.1.","Dešinės pusės, 4 kiaurymių"]
["3.15.","Stipinkaulio distalinio galo dorsalinė užrakinama kompresinė plokštelė, T formos, pagaminta iš titano. 3 kiaurymės distalinėje dalyje. Fiksuojama Ø 2,7 mm užrakinamais ir Ø 2,7 mm kortikaliniais sraigtais.",10,"vnt",103.62,{"$f":"IF(ISBLANK(E1098),\"\", PRODUCT(C1098,E1098))","v":1036.2},"22557003, katalogas 1, p. 72, Changzhou Kanghui Medical Innovation Co., Ltd. a Medtronic company","Stipinkaulio distalinio galo dorsalinė užrakinama kompresinė plokštelė, T formos, pagaminta iš titano. 3 kiaurymės distalinėje dalyje. Fiksuojama Ø 2,7 mm užrakinamais ir Ø 2,7 mm kortikaliniais sraigtais. 3 kiaurymių"]
["3.15.1.","3 kiaurymių"]
["3.16.","Stipinkaulio distalinio galo dorsalinė užrakinama kompresinė plokštelė, T formos, pagaminta iš titano. 3 kiaurymės distalinėje dalyje. Fiksuojama Ø 2,7 mm užrakinamais ir Ø 2,7 mm kortikaliniais sraigtais.",10,"vnt",103.62,{"$f":"IF(ISBLANK(E1100),\"\", PRODUCT(C1100,E1100))","v":1036.2},"22557004, 22557005, katalogas 1, p. 72, Changzhou Kanghui Medical Innovation Co., Ltd. a Medtronic company","Stipinkaulio distalinio galo dorsalinė užrakinama kompresinė plokštelė, T formos, pagaminta iš titano. 3 kiaurymės distalinėje dalyje. Fiksuojama Ø 2,7 mm užrakinamais ir Ø 2,7 mm kortikaliniais sraigtais. 4, 5 kiaurymių"]
["3.16.1.","4-5 kiaurymių"]
["3.17.","Anatomiškai išlenkta stipinkaulio distalinio galo voliarinė užrakinama kompresinė plokštelė, pagaminta iš titano. Plokštelės \"galvoje\" yra 8-9 kiaurymės užrakinamiems sraigtams. Fiksuojama Ø 2,7 mm užrakinamais ir Ø 2,7 mm kortikaliniais sraigtais. ",2,"vnt",164.89,{"$f":"IF(ISBLANK(E1102),\"\", PRODUCT(C1102,E1102))","v":329.78},"22560203, katalogas 1, p. 73; 22559203, katalogas 1, p. 73, Changzhou Kanghui Medical Innovation Co., Ltd. a Medtronic company","Anatomiškai išlenkta stipinkaulio distalinio galo voliarinė užrakinama kompresinė plokštelė, pagaminta iš titano. Plokštelės \"galvoje\" yra 8, 9 kiaurymės užrakinamiems sraigtams. Fiksuojama Ø 2,7 mm užrakinamais ir Ø 2,7 mm kortikaliniais sraigtais, kairės pusės, 3 kiaurymių"]
["3.17.1.","Kairės pusės, 3 kiaurymių"]
["3.18.","Anatomiškai išlenkta stipinkaulio distalinio galo voliarinė užrakinama kompresinė plokštelė, pagaminta iš titano. Plokštelės \"galvoje\" yra 8-9 kiaurymės užrakinamiems sraigtams. Fiksuojama Ø 2,7 mm užrakinamais ir Ø 2,7 mm kortikaliniais sraigtais. ",2,"vnt",164.89,{"$f":"IF(ISBLANK(E1104),\"\", PRODUCT(C1104,E1104))","v":329.78},"22560204, katalogas 1, p. 73; 22559204, katalogas 1, p. 73, Changzhou Kanghui Medical Innovation Co., Ltd. a Medtronic company","Anatomiškai išlenkta stipinkaulio distalinio galo voliarinė užrakinama kompresinė plokštelė, pagaminta iš titano. Plokštelės \"galvoje\" yra 8, 9 kiaurymės užrakinamiems sraigtams. Fiksuojama Ø 2,7 mm užrakinamais ir Ø 2,7 mm kortikaliniais sraigtais, kairės pusės, 4 kiaurymių"]
["3.18.1.","Kairės pusės, 4 kiaurymių"]
["3.19.","Anatomiškai išlenkta stipinkaulio distalinio galo voliarinė užrakinama kompresinė plokštelė, pagaminta iš titano. Plokštelės \"galvoje\" yra 8-9 kiaurymės užrakinamiems sraigtams. Fiksuojama Ø 2,7 mm užrakinamais ir Ø 2,7 mm kortikaliniais sraigtais. ",2,"vnt",164.89,{"$f":"IF(ISBLANK(E1106),\"\", PRODUCT(C1106,E1106))","v":329.78},"22560205, 22560206 katalogas 1, p. 73; 22559205, katalogas 1, p. 73,Changzhou Kanghui Medical Innovation Co., Ltd. a Medtronic company","Anatomiškai išlenkta stipinkaulio distalinio galo voliarinė užrakinama kompresinė plokštelė, pagaminta iš titano. Plokštelės \"galvoje\" yra 8, 9 kiaurymės užrakinamiems sraigtams. Fiksuojama Ø 2,7 mm užrakinamais ir Ø 2,7 mm kortikaliniais sraigtais, kairės pusės, 5, 6 kiaurymių"]
["3.19.1.","Kairės pusės, 5-6 kiaurymių"]
["3.20.","Anatomiškai išlenkta stipinkaulio distalinio galo voliarinė užrakinama kompresinė plokštelė, pagaminta iš titano. Plokštelės \"galvoje\" yra 8-9 kiaurymės užrakinamiems sraigtams. Fiksuojama Ø 2,7 mm užrakinamais ir Ø 2,7 mm kortikaliniais sraigtais. ",2,"vnt",164.89,{"$f":"IF(ISBLANK(E1108),\"\", PRODUCT(C1108,E1108))","v":329.78},"22560103, katalogas 1, p. 73; 22559103, katalogas 1, p. 73, Changzhou Kanghui Medical Innovation Co., Ltd. a Medtronic company","Anatomiškai išlenkta stipinkaulio distalinio galo voliarinė užrakinama kompresinė plokštelė, pagaminta iš titano. Plokštelės \"galvoje\" yra 8, 9 kiaurymės užrakinamiems sraigtams. Fiksuojama Ø 2,7 mm užrakinamais ir Ø 2,7 mm kortikaliniais sraigtais, dešinės pusės, 3 kiaurymių"]
["3.20.1.","Dešinės pusės, 3 kiaurymių"]
["3.21.","Anatomiškai išlenkta stipinkaulio distalinio galo voliarinė užrakinama kompresinė plokštelė, pagaminta iš titano. Plokštelės \"galvoje\" yra 8-9 kiaurymės užrakinamiems sraigtams. Fiksuojama Ø 2,7 mm užrakinamais ir Ø 2,7 mm kortikaliniais sraigtais. ",2,"vnt",164.89,{"$f":"IF(ISBLANK(E1110),\"\", PRODUCT(C1110,E1110))","v":329.78},"22560104, katalogas 1, p. 73; 22559104, katalogas 1, p. 73, Changzhou Kanghui Medical Innovation Co., Ltd. a Medtronic company","Anatomiškai išlenkta stipinkaulio distalinio galo voliarinė užrakinama kompresinė plokštelė, pagaminta iš titano. Plokštelės \"galvoje\" yra 8, 9 kiaurymės užrakinamiems sraigtams. Fiksuojama Ø 2,7 mm užrakinamais ir Ø 2,7 mm kortikaliniais sraigtais, dešinės pusės, 4 kiaurymių"]
["3.21.1.","Dešinės pusės, 4 kiaurymių"]
["3.22.","Anatomiškai išlenkta stipinkaulio distalinio galo voliarinė užrakinama kompresinė plokštelė, pagaminta iš titano. Plokštelės \"galvoje\" yra 8-9 kiaurymės užrakinamiems sraigtams. Fiksuojama Ø 2,7 mm užrakinamais ir Ø 2,7 mm kortikaliniais sraigtais. ",2,"vnt",164.89,{"$f":"IF(ISBLANK(E1112),\"\", PRODUCT(C1112,E1112))","v":329.78},"22560105, 22560106 katalogas 1, p. 73; 22559105, katalogas 1, p. 73,Changzhou Kanghui Medical Innovation Co., Ltd. a Medtronic company","Anatomiškai išlenkta stipinkaulio distalinio galo voliarinė užrakinama kompresinė plokštelė, pagaminta iš titano. Plokštelės \"galvoje\" yra 8, 9 kiaurymės užrakinamiems sraigtams. Fiksuojama Ø 2,7 mm užrakinamais ir Ø 2,7 mm kortikaliniais sraigtais, dešinės pusės, 5, 6 kiaurymių"]
["3.22.1.","Dešinės pusės, 5-6 kiaurymių"]
["3.23.","Tiesi užrakinama kompresinė plokštelė, plati, pagaminta iš titano. Fiksuojama Ø 5,0 mm užrakinamais ir Ø 4,5 mm kortikaliniais sraigtais.",5,"vnt",77.430000000000007,{"$f":"IF(ISBLANK(E1114),\"\", PRODUCT(C1114,E1114))","v":387.15000000000003},"22587006, katalogas 1, p. 76, Changzhou Kanghui Medical Innovation Co., Ltd. a Medtronic company","Tiesi užrakinama kompresinė plokštelė, plati, pagaminta iš titano. Fiksuojama Ø 5,0 mm užrakinamais ir Ø 4,5 mm kortikaliniais sraigtais. 6 kiaurymių"]
["3.23.1.","6 kiaurymių"]
["3.24.","Tiesi užrakinama kompresinė plokštelė, plati, pagaminta iš titano. Fiksuojama Ø 5,0 mm užrakinamais ir Ø 4,5 mm kortikaliniais sraigtais.",3,"vnt",83.97,{"$f":"IF(ISBLANK(E1116),\"\", PRODUCT(C1116,E1116))","v":251.91},"22587007, katalogas 1, p. 76, Changzhou Kanghui Medical Innovation Co., Ltd. a Medtronic company","Tiesi užrakinama kompresinė plokštelė, plati, pagaminta iš titano. Fiksuojama Ø 5,0 mm užrakinamais ir Ø 4,5 mm kortikaliniais sraigtais. 7 kiaurymių"]
["3.24.1.","7 kiaurymių"]
["3.25.","Tiesi užrakinama kompresinė plokštelė, plati, pagaminta iš titano. Fiksuojama Ø 5,0 mm užrakinamais ir Ø 4,5 mm kortikaliniais sraigtais.",5,"vnt",83.97,{"$f":"IF(ISBLANK(E1118),\"\", PRODUCT(C1118,E1118))","v":419.85},"22587008, katalogas 1, p. 76, Changzhou Kanghui Medical Innovation Co., Ltd. a Medtronic company","Tiesi užrakinama kompresinė plokštelė, plati, pagaminta iš titano. Fiksuojama Ø 5,0 mm užrakinamais ir Ø 4,5 mm kortikaliniais sraigtais. 8 kiaurymių"]
["3.25.1.","8 kiaurymių"]
["3.26.","Tiesi užrakinama kompresinė plokštelė, plati, pagaminta iš titano. Fiksuojama Ø 5,0 mm užrakinamais ir Ø 4,5 mm kortikaliniais sraigtais.",3,"vnt",83.97,{"$f":"IF(ISBLANK(E1120),\"\", PRODUCT(C1120,E1120))","v":251.91},"22587009, katalogas 1, p. 76, Changzhou Kanghui Medical Innovation Co., Ltd. a Medtronic company","Tiesi užrakinama kompresinė plokštelė, plati, pagaminta iš titano. Fiksuojama Ø 5,0 mm užrakinamais ir Ø 4,5 mm kortikaliniais sraigtais. 9 kiaurymių"]
["3.26.1.","9 kiaurymių"]
["3.27.","Tiesi užrakinama kompresinė plokštelė, plati, pagaminta iš titano. Fiksuojama Ø 5,0 mm užrakinamais ir Ø 4,5 mm kortikaliniais sraigtais.",5,"vnt",90.42,{"$f":"IF(ISBLANK(E1122),\"\", PRODUCT(C1122,E1122))","v":452.1},"22587010, katalogas 1, p. 76, Changzhou Kanghui Medical Innovation Co., Ltd. a Medtronic company","Tiesi užrakinama kompresinė plokštelė, plati, pagaminta iš titano. Fiksuojama Ø 5,0 mm užrakinamais ir Ø 4,5 mm kortikaliniais sraigtais. 10 kiaurymių"]
["3.27.1.","10 kiaurymių"]
["3.28.","Tiesi užrakinama kompresinė plokštelė, plati, pagaminta iš titano. Fiksuojama Ø 5,0 mm užrakinamais ir Ø 4,5 mm kortikaliniais sraigtais.",5,"vnt",90.42,{"$f":"IF(ISBLANK(E1124),\"\", PRODUCT(C1124,E1124))","v":452.1},"22587012, katalogas 1, p. 76, Changzhou Kanghui Medical Innovation Co., Ltd. a Medtronic company","Tiesi užrakinama kompresinė plokštelė, plati, pagaminta iš titano. Fiksuojama Ø 5,0 mm užrakinamais ir Ø 4,5 mm kortikaliniais sraigtais. 12 kiaurymių"]
["3.28.1.","12 kiaurymių"]
["3.29.","Tiesi užrakinama kompresinė plokštelė, plati, pagaminta iš titano. Fiksuojama Ø 5,0 mm užrakinamais ir Ø 4,5 mm kortikaliniais sraigtais.",5,"vnt",90.42,{"$f":"IF(ISBLANK(E1126),\"\", PRODUCT(C1126,E1126))","v":452.1},"22587014, katalogas 1, p. 76, Changzhou Kanghui Medical Innovation Co., Ltd. a Medtronic company","Tiesi užrakinama kompresinė plokštelė, plati, pagaminta iš titano. Fiksuojama Ø 5,0 mm užrakinamais ir Ø 4,5 mm kortikaliniais sraigtais. 14 kiaurymių"]
["3.29.1.","14 kiaurymių"]
["3.30.","Tiesi užrakinama kompresinė plokštelė, plati, pagaminta iš titano. Fiksuojama Ø 5,0 mm užrakinamais ir Ø 4,5 mm kortikaliniais sraigtais.",5,"vnt",96.87,{"$f":"IF(ISBLANK(E1128),\"\", PRODUCT(C1128,E1128))","v":484.35},"22587016, katalogas 1, p. 76, Changzhou Kanghui Medical Innovation Co., Ltd. a Medtronic company","Tiesi užrakinama kompresinė plokštelė, plati, pagaminta iš titano. Fiksuojama Ø 5,0 mm užrakinamais ir Ø 4,5 mm kortikaliniais sraigtais. 16 kiaurymių"]
["3.30.1.","16 kiaurymių"]
["3.31.","Tiesi metafizinė užrakinama kompresinė plokštelė, storėjanti iš vieno galo į kitą, pagaminta iš titano. Fiksuojama Ø 3,5 ir 5,0 mm užrakinamais ir Ø 4,5 mm kortikaliniais sraigtais.",2,"vnt",112.95,{"$f":"IF(ISBLANK(E1130),\"\", PRODUCT(C1130,E1130))","v":225.9},"22520004, katalogas 1, p. 76, Changzhou Kanghui Medical Innovation Co., Ltd. a Medtronic company","Tiesi metafizinė užrakinama kompresinė plokštelė, storėjanti iš vieno galo į kitą, pagaminta iš titano. Fiksuojama Ø 3,5 ir 5,0 mm užrakinamais ir Ø 4,5 mm kortikaliniais sraigtais. 5+4 kiaurymių"]
["3.31.1.","5+4 kiaurymių"]
["3.32.","Tiesi metafizinė užrakinama kompresinė plokštelė, storėjanti iš vieno galo į kitą, pagaminta iš titano. Fiksuojama Ø 3,5 ir 5,0 mm užrakinamais ir Ø 4,5 mm kortikaliniais sraigtais.",1,"vnt",112.95,{"$f":"IF(ISBLANK(E1132),\"\", PRODUCT(C1132,E1132))","v":112.95},"22520005, katalogas 1, p. 76, Changzhou Kanghui Medical Innovation Co., Ltd. a Medtronic company","Tiesi metafizinė užrakinama kompresinė plokštelė, storėjanti iš vieno galo į kitą, pagaminta iš titano. Fiksuojama Ø 3,5 ir 5,0 mm užrakinamais ir Ø 4,5 mm kortikaliniais sraigtais. 5+5 kiaurymių"]
["3.32.1.","5+5 kiaurymių"]
["3.33.","Tiesi metafizinė užrakinama kompresinė plokštelė, storėjanti iš vieno galo į kitą, pagaminta iš titano. Fiksuojama Ø 3,5 ir 5,0 mm užrakinamais ir Ø 4,5 mm kortikaliniais sraigtais.",2,"vnt",127.48,{"$f":"IF(ISBLANK(E1134),\"\", PRODUCT(C1134,E1134))","v":254.96},"22520006, katalogas 1, p. 76, Changzhou Kanghui Medical Innovation Co., Ltd. a Medtronic company","Tiesi metafizinė užrakinama kompresinė plokštelė, storėjanti iš vieno galo į kitą, pagaminta iš titano. Fiksuojama Ø 3,5 ir 5,0 mm užrakinamais ir Ø 4,5 mm kortikaliniais sraigtais. 5+6 kiaurymių"]
["3.33.1.","5+6 kiaurymių"]
["3.34.","Tiesi metafizinė užrakinama kompresinė plokštelė, storėjanti iš vieno galo į kitą, pagaminta iš titano. Fiksuojama Ø 3,5 ir 5,0 mm užrakinamais ir Ø 4,5 mm kortikaliniais sraigtais.",1,"vnt",127.48,{"$f":"IF(ISBLANK(E1136),\"\", PRODUCT(C1136,E1136))","v":127.48},"22520007, katalogas 1, p. 76, Changzhou Kanghui Medical Innovation Co., Ltd. a Medtronic company","Tiesi metafizinė užrakinama kompresinė plokštelė, storėjanti iš vieno galo į kitą, pagaminta iš titano. Fiksuojama Ø 3,5 ir 5,0 mm užrakinamais ir Ø 4,5 mm kortikaliniais sraigtais. 5+7 kiaurymių"]
["3.34.1.","5+7 kiaurymių"]
["3.35.","Tiesi metafizinė užrakinama kompresinė plokštelė, storėjanti iš vieno galo į kitą, pagaminta iš titano. Fiksuojama Ø 3,5 ir 5,0 mm užrakinamais ir Ø 4,5 mm kortikaliniais sraigtais.",2,"vnt",127.48,{"$f":"IF(ISBLANK(E1138),\"\", PRODUCT(C1138,E1138))","v":254.96},"22520008, katalogas 1, p. 76, Changzhou Kanghui Medical Innovation Co., Ltd. a Medtronic company","Tiesi metafizinė užrakinama kompresinė plokštelė, storėjanti iš vieno galo į kitą, pagaminta iš titano. Fiksuojama Ø 3,5 ir 5,0 mm užrakinamais ir Ø 4,5 mm kortikaliniais sraigtais. 5+8 kiaurymių"]
["3.35.1.","5+8 kiaurymių"]
["3.36.","Tiesi metafizinė užrakinama kompresinė plokštelė, storėjanti iš vieno galo į kitą, pagaminta iš titano. Fiksuojama Ø 3,5 ir 5,0 mm užrakinamais ir Ø 4,5 mm kortikaliniais sraigtais.",1,"vnt",127.48,{"$f":"IF(ISBLANK(E1140),\"\", PRODUCT(C1140,E1140))","v":127.48},"22520009, katalogas 1, p. 76, Changzhou Kanghui Medical Innovation Co., Ltd. a Medtronic company","Tiesi metafizinė užrakinama kompresinė plokštelė, storėjanti iš vieno galo į kitą, pagaminta iš titano. Fiksuojama Ø 3,5 ir 5,0 mm užrakinamais ir Ø 4,5 mm kortikaliniais sraigtais. 5+9 kiaurymių"]
["3.36.1.","5+9 kiaurymių"]
["3.37.","Distalinio žąstikaulio galo medialinė užrakinama kompresinė plokštelė, pagaminta iš titano. Fiksuojama Ø 2,7 ir 3,5 mm užrakinamais ir Ø 3,5 mm kortikaliniais sraigtais.",3,"vnt",165.25,{"$f":"IF(ISBLANK(E1142),\"\", PRODUCT(C1142,E1142))","v":495.75},"22579206, katalogas 1, p. 80, Changzhou Kanghui Medical Innovation Co., Ltd. a Medtronic company","Distalinio žąstikaulio galo medialinė užrakinama kompresinė plokštelė, pagaminta iš titano. Fiksuojama Ø 2,7 ir 3,5 mm užrakinamais ir Ø 3,5 mm kortikaliniais sraigtais. Kairės pusės, 3 kiaurymių"]
["3.37.1.","Kairės pusės, 3 kiaurymių"]
["3.38.","Distalinio žąstikaulio galo medialinė užrakinama kompresinė plokštelė, pagaminta iš titano. Fiksuojama Ø 2,7 ir 3,5 mm užrakinamais ir Ø 3,5 mm kortikaliniais sraigtais.",3,"vnt",165.25,{"$f":"IF(ISBLANK(E1144),\"\", PRODUCT(C1144,E1144))","v":495.75},"22579208, katalogas 1, p. 80, Changzhou Kanghui Medical Innovation Co., Ltd. a Medtronic company","Distalinio žąstikaulio galo medialinė užrakinama kompresinė plokštelė, pagaminta iš titano. Fiksuojama Ø 2,7 ir 3,5 mm užrakinamais ir Ø 3,5 mm kortikaliniais sraigtais. Kairės pusės, 5 kiaurymių"]
["3.38.1.","Kairės pusės, 5 kiaurymių"]
["3.39.","Distalinio žąstikaulio galo medialinė užrakinama kompresinė plokštelė, pagaminta iš titano. Fiksuojama Ø 2,7 ir 3,5 mm užrakinamais ir Ø 3,5 mm kortikaliniais sraigtais.",2,"vnt",165.25,{"$f":"IF(ISBLANK(E1146),\"\", PRODUCT(C1146,E1146))","v":330.5},"22579210, katalogas 1, p. 80, Changzhou Kanghui Medical Innovation Co., Ltd. a Medtronic company","Distalinio žąstikaulio galo medialinė užrakinama kompresinė plokštelė, pagaminta iš titano. Fiksuojama Ø 2,7 ir 3,5 mm užrakinamais ir Ø 3,5 mm kortikaliniais sraigtais. Kairės pusės, 7 kiaurymių"]
["3.39.1.","Kairės pusės, 7 kiaurymių"]
["3.40.","Distalinio žąstikaulio galo medialinė užrakinama kompresinė plokštelė, pagaminta iš titano. Fiksuojama Ø 2,7 ir 3,5 mm užrakinamais ir Ø 3,5 mm kortikaliniais sraigtais.",1,"vnt",165.25,{"$f":"IF(ISBLANK(E1148),\"\", PRODUCT(C1148,E1148))","v":165.25},"22579212, katalogas 1, p. 80, Changzhou Kanghui Medical Innovation Co., Ltd. a Medtronic company","Distalinio žąstikaulio galo medialinė užrakinama kompresinė plokštelė, pagaminta iš titano. Fiksuojama Ø 2,7 ir 3,5 mm užrakinamais ir Ø 3,5 mm kortikaliniais sraigtais. Kairės pusės, 9 kiaurymių"]
["3.40.1.","Kairės pusės, 9 kiaurymių"]
["3.41.","Distalinio žąstikaulio galo medialinė užrakinama kompresinė plokštelė, pagaminta iš titano. Fiksuojama Ø 2,7 ir 3,5 mm užrakinamais ir Ø 3,5 mm kortikaliniais sraigtais.",3,"vnt",165.25,{"$f":"IF(ISBLANK(E1150),\"\", PRODUCT(C1150,E1150))","v":495.75},"22579106, katalogas 1, p. 80, Changzhou Kanghui Medical Innovation Co., Ltd. a Medtronic company","Distalinio žąstikaulio galo medialinė užrakinama kompresinė plokštelė, pagaminta iš titano. Fiksuojama Ø 2,7 ir 3,5 mm užrakinamais ir Ø 3,5 mm kortikaliniais sraigtais. Dešinės pusės, 3 kiaurymių"]
["3.41.1.","Dešinės pusės, 3 kiaurymių"]
["3.42.","Distalinio žąstikaulio galo medialinė užrakinama kompresinė plokštelė, pagaminta iš titano. Fiksuojama Ø 2,7 ir 3,5 mm užrakinamais ir Ø 3,5 mm kortikaliniais sraigtais.",3,"vnt",165.25,{"$f":"IF(ISBLANK(E1152),\"\", PRODUCT(C1152,E1152))","v":495.75},"22579108, katalogas 1, p. 80, Changzhou Kanghui Medical Innovation Co., Ltd. a Medtronic company","Distalinio žąstikaulio galo medialinė užrakinama kompresinė plokštelė, pagaminta iš titano. Fiksuojama Ø 2,7 ir 3,5 mm užrakinamais ir Ø 3,5 mm kortikaliniais sraigtais. Dešinės pusės, 5 kiaurymių"]
["3.42.1.","Dešinės pusės, 5 kiaurymių"]
["3.43.","Distalinio žąstikaulio galo medialinė užrakinama kompresinė plokštelė, pagaminta iš titano. Fiksuojama Ø 2,7 ir 3,5 mm užrakinamais ir Ø 3,5 mm kortikaliniais sraigtais.",2,"vnt",165.25,{"$f":"IF(ISBLANK(E1154),\"\", PRODUCT(C1154,E1154))","v":330.5},"22579110, katalogas 1, p. 80, Changzhou Kanghui Medical Innovation Co., Ltd. a Medtronic company","Distalinio žąstikaulio galo medialinė užrakinama kompresinė plokštelė, pagaminta iš titano. Fiksuojama Ø 2,7 ir 3,5 mm užrakinamais ir Ø 3,5 mm kortikaliniais sraigtais. Dešinės pusės, 7 kiaurymių"]
["3.43.1.","Dešinės pusės, 7 kiaurymių"]
["3.44.","Distalinio žąstikaulio galo medialinė užrakinama kompresinė plokštelė, pagaminta iš titano. Fiksuojama Ø 2,7 ir 3,5 mm užrakinamais ir Ø 3,5 mm kortikaliniais sraigtais.",1,"vnt",165.25,{"$f":"IF(ISBLANK(E1156),\"\", PRODUCT(C1156,E1156))","v":165.25},"22579112, katalogas 1, p. 80, Changzhou Kanghui Medical Innovation Co., Ltd. a Medtronic company","Distalinio žąstikaulio galo medialinė užrakinama kompresinė plokštelė, pagaminta iš titano. Fiksuojama Ø 2,7 ir 3,5 mm užrakinamais ir Ø 3,5 mm kortikaliniais sraigtais. Dešinės pusės, 9 kiaurymių"]
["3.44.1.","Dešinės pusės, 9 kiaurymių"]
["3.45.","Proksimalinio blauzdikaulio galo medialinė užrakinama kompresinė plokštelė, T formos, pagaminta iš titano. 3 kiaurymės užrakinamiems sraigtams proksimalinėje plokštelės dalyje. ",7,"vnt",185.51,{"$f":"IF(ISBLANK(E1158),\"\", PRODUCT(C1158,E1158))","v":1298.57},"22589105, 22589106, katalogas 1, p. 84, Changzhou Kanghui Medical Innovation Co., Ltd. a Medtronic company","Proksimalinio blauzdikaulio galo medialinė užrakinama kompresinė plokštelė, T formos, pagaminta iš titano. 3 kiaurymės užrakinamiems sraigtams proksimalinėje plokštelės dalyje.  Dešinės pusės, 5, 6 kiaurymės siaurojoje plokštelės dalyje"]
["3.45.1.","Dešinės pusės, 5-6 kiaurymės siaurojoje plokštelės dalyje"]
["3.46.","Proksimalinio blauzdikaulio galo medialinė užrakinama kompresinė plokštelė, T formos, pagaminta iš titano. 3 kiaurymės užrakinamiems sraigtams proksimalinėje plokštelės dalyje. ",4,"vnt",185.51,{"$f":"IF(ISBLANK(E1160),\"\", PRODUCT(C1160,E1160))","v":742.04},"22589107, 22589108, katalogas 1, p. 84, Changzhou Kanghui Medical Innovation Co., Ltd. a Medtronic company","Proksimalinio blauzdikaulio galo medialinė užrakinama kompresinė plokštelė, T formos, pagaminta iš titano. 3 kiaurymės užrakinamiems sraigtams proksimalinėje plokštelės dalyje.  Dešinės pusės, 7, 8 kiaurymės siaurojoje plokštelės dalyje"]
["3.46.1.","Dešinės pusės, 7-8 kiaurymės siaurojoje plokštelės dalyje"]
["3.47.","Proksimalinio blauzdikaulio galo medialinė užrakinama kompresinė plokštelė, T formos, pagaminta iš titano. 3 kiaurymės užrakinamiems sraigtams proksimalinėje plokštelės dalyje. ",2,"vnt",185.51,{"$f":"IF(ISBLANK(E1162),\"\", PRODUCT(C1162,E1162))","v":371.02},"22589109, 22589110, katalogas 1, p. 84, Changzhou Kanghui Medical Innovation Co., Ltd. a Medtronic company","Proksimalinio blauzdikaulio galo medialinė užrakinama kompresinė plokštelė, T formos, pagaminta iš titano. 3 kiaurymės užrakinamiems sraigtams proksimalinėje plokštelės dalyje.  Dešinės pusės, 9, 10 kiaurymių siaurojoje plokštelės dalyje"]
["3.47.1.","Dešinės pusės, 9-10 kiaurymės siaurojoje plokštelės dalyje"]
["3.48.","Proksimalinio blauzdikaulio galo medialinė užrakinama kompresinė plokštelė, T formos, pagaminta iš titano. 3 kiaurymės užrakinamiems sraigtams proksimalinėje plokštelės dalyje. ",2,"vnt",202.01,{"$f":"IF(ISBLANK(E1164),\"\", PRODUCT(C1164,E1164))","v":404.02},"22589111, 22589112 katalogas 1, p. 84, Changzhou Kanghui Medical Innovation Co., Ltd. a Medtronic company","Proksimalinio blauzdikaulio galo medialinė užrakinama kompresinė plokštelė, T formos, pagaminta iš titano. 3 kiaurymės užrakinamiems sraigtams proksimalinėje plokštelės dalyje.  Dešinės pusės, 11, 12 kiaurymių siaurojoje plokštelės dalyje"]
["3.48.1.","Dešinės pusės, 11-12 kiaurymių siaurojoje plokštelės dalyje"]
["3.49.","Proksimalinio blauzdikaulio galo medialinė užrakinama kompresinė plokštelė, T formos, pagaminta iš titano. 3 kiaurymės užrakinamiems sraigtams proksimalinėje plokštelės dalyje. ",7,"vnt",185.51,{"$f":"IF(ISBLANK(E1166),\"\", PRODUCT(C1166,E1166))","v":1298.57},"22589205, 22589206, katalogas 1, p. 84, Changzhou Kanghui Medical Innovation Co., Ltd. a Medtronic company","Proksimalinio blauzdikaulio galo medialinė užrakinama kompresinė plokštelė, T formos, pagaminta iš titano. 3 kiaurymės užrakinamiems sraigtams proksimalinėje plokštelės dalyje.  Kairės pusės, 5, 6 kiaurymės siaurojoje plokštelės dalyje"]
["3.49.1.","Kairės pusės, 5-6 kiaurymės siaurojoje plokštelės dalyje"]
["3.50.","Proksimalinio blauzdikaulio galo medialinė užrakinama kompresinė plokštelė, T formos, pagaminta iš titano. 3 kiaurymės užrakinamiems sraigtams proksimalinėje plokštelės dalyje. ",4,"vnt",185.51,{"$f":"IF(ISBLANK(E1168),\"\", PRODUCT(C1168,E1168))","v":742.04},"22589207, 22589208, katalogas 1, p. 84, Changzhou Kanghui Medical Innovation Co., Ltd. a Medtronic company","Proksimalinio blauzdikaulio galo medialinė užrakinama kompresinė plokštelė, T formos, pagaminta iš titano. 3 kiaurymės užrakinamiems sraigtams proksimalinėje plokštelės dalyje.  Kairės pusės, 7, 8 kiaurymės siaurojoje plokštelės dalyje"]
["3.50.1.","Kairės pusės, 7-8 kiaurymės siaurojoje plokštelės dalyje"]
["3.51.","Proksimalinio blauzdikaulio galo medialinė užrakinama kompresinė plokštelė, T formos, pagaminta iš titano. 3 kiaurymės užrakinamiems sraigtams proksimalinėje plokštelės dalyje. ",2,"vnt",185.51,{"$f":"IF(ISBLANK(E1170),\"\", PRODUCT(C1170,E1170))","v":371.02},"22589209, 22589210, katalogas 1, p. 84, Changzhou Kanghui Medical Innovation Co., Ltd. a Medtronic company","Proksimalinio blauzdikaulio galo medialinė užrakinama kompresinė plokštelė, T formos, pagaminta iš titano. 3 kiaurymės užrakinamiems sraigtams proksimalinėje plokštelės dalyje.  Kairės pusės, 9, 10 kiaurymės siaurojoje plokštelės dalyje"]
["3.51.1.","Kairės pusės, 9-10 kiaurymės siaurojoje plokštelės dalyje"]
["3.52.","Proksimalinio blauzdikaulio galo medialinė užrakinama kompresinė plokštelė, T formos, pagaminta iš titano. 3 kiaurymės užrakinamiems sraigtams proksimalinėje plokštelės dalyje. ",2,"vnt",185.51,{"$f":"IF(ISBLANK(E1172),\"\", PRODUCT(C1172,E1172))","v":371.02},"22589211, 22589212 katalogas 1, p. 84, Changzhou Kanghui Medical Innovation Co., Ltd. a Medtronic company","Proksimalinio blauzdikaulio galo medialinė užrakinama kompresinė plokštelė, T formos, pagaminta iš titano. 3 kiaurymės užrakinamiems sraigtams proksimalinėje plokštelės dalyje.  Kairės pusės, 11, 12 kiaurymės siaurojoje plokštelės dalyje"]
["3.52.1.","Kairės pusės, 11-12 kiaurymės siaurojoje plokštelės dalyje"]
["3.53.","Ø 2,7 mm užrakinami savisriegiai sraigtai, pilnu sriegiu, pagaminti iš titano lydinio. ",800,"vnt",20.73,{"$f":"IF(ISBLANK(E1174),\"\", PRODUCT(C1174,E1174))","v":16584},"32580006-32580030, katalogas 1, p. 66, Changzhou Kanghui Medical Innovation Co., Ltd. a Medtronic company","Ø 2,7 mm užrakinami savisriegiai sraigtai, pilnu sriegiu, pagaminti iš titano lydinio.  Nuo 12 mm iki 30 mm kas 2 mm"]
["3.53.1.","Nuo 12 mm iki 30 mm kas 2 mm"]
["3.54.","Ø 2,7 mm užrakinami savisriegiai sraigtai, pilnu sriegiu, pagaminti iš titano lydinio. ",80,"vnt",24.15,{"$f":"IF(ISBLANK(E1176),\"\", PRODUCT(C1176,E1176))","v":1932},"32580032-32580060, katalogas 1, p. 66, Changzhou Kanghui Medical Innovation Co., Ltd. a Medtronic company","Ø 2,7 mm užrakinami savisriegiai sraigtai, pilnu sriegiu, pagaminti iš titano lydinio.  Nuo 32 mm iki 50 mm kas 2 mm"]
["3.54.1.","Nuo 32 mm iki 50 mm kas 2 mm"]
["3.55.","Ø 2,7 mm kortikaliniai sraigtai, pilnu sriegiu, pagaminti iš titano lydinio.",100,"vnt",8.93,{"$f":"IF(ISBLANK(E1178),\"\", PRODUCT(C1178,E1178))","v":893},"30375006-30375020, katalogas 1, p. 66, Changzhou Kanghui Medical Innovation Co., Ltd. a Medtronic company","Ø 2,7 mm kortikaliniai sraigtai, pilnu sriegiu, pagaminti iš titano lydinio. Nuo 12 mm iki 20 mm kas 2 mm"]
["3.55.1.","Nuo 12 mm iki 20 mm kas 2 mm"]
["3.56.","Ø 2,7 mm kortikaliniai sraigtai, pilnu sriegiu, pagaminti iš titano lydinio.",70,"vnt",8.93,{"$f":"IF(ISBLANK(E1180),\"\", PRODUCT(C1180,E1180))","v":625.1},"30375022-30375060, katalogas 1, p. 66, Changzhou Kanghui Medical Innovation Co., Ltd. a Medtronic company","Ø 2,7 mm kortikaliniai sraigtai, pilnu sriegiu, pagaminti iš titano lydinio. Nuo 22 mm iki 40 mm kas 2 mm"]
["3.56.1.","Nuo 22 mm iki 40 mm kas 2 mm"]
["3.57.","Ø 3,5 mm užrakinami savisriegiai sraigtai, pilnu sriegiu, pagaminti iš titano lydinio. ",600,"vnt",16.39,{"$f":"IF(ISBLANK(E1182),\"\", PRODUCT(C1182,E1182))","v":9834},"31451010-31451040, katalogas 1,  p. 86, Changzhou Kanghui Medical Innovation Co., Ltd. a Medtronic company","Ø 3,5 mm užrakinami savisriegiai sraigtai, pilnu sriegiu, pagaminti iš titano lydinio.  Nuo 12 mm iki 40 mm kas 2 mm"]
["3.57.1.","Nuo 12 mm iki 40 mm kas 2 mm"]
["3.58.","Ø 3,5 mm užrakinami savisriegiai sraigtai, pilnu sriegiu, pagaminti iš titano lydinio. ",400,"vnt",18.72,{"$f":"IF(ISBLANK(E1184),\"\", PRODUCT(C1184,E1184))","v":7488},"31451042-31451080, katalogas 1, p. 86, Changzhou Kanghui Medical Innovation Co., Ltd. a Medtronic company","Ø 3,5 mm užrakinami savisriegiai sraigtai, pilnu sriegiu, pagaminti iš titano lydinio. Nuo 42 mm iki 80 mm, 12 ilgių"]
["3.58.1.","Nuo 42 mm iki 80 mm ne mažiau 8 ilgių"]
["3.59.","Ø 3,5 mm kortikaliniai sraigtai, pilnu sriegiu, pagaminti iš titano lydinio.",1000,"vnt",4.24,{"$f":"IF(ISBLANK(E1186),\"\", PRODUCT(C1186,E1186))","v":4240},"30306110-30306170, katalogas 1, p. 136, Changzhou Kanghui Medical Innovation Co., Ltd. a Medtronic company","Ø 3,5 mm kortikaliniai sraigtai, pilnu sriegiu, pagaminti iš titano lydinio. Nuo 10 mm iki 50 mm, 22 ilgių"]
["3.59.1.","Nuo 10 mm iki 50 mm ne mažiau 16 ilgių"]
["3.60.","Ø 4,0 mm spongioziniai sraigtai, pilnu sriegiu, pagaminti iš titano lydinio.",80,"vnt",4.6900000000000004,{"$f":"IF(ISBLANK(E1188),\"\", PRODUCT(C1188,E1188))","v":375.20000000000005},"30403110-30403130, katalogas 1, p. 139, Changzhou Kanghui Medical Innovation Co., Ltd. a Medtronic company","Ø 4,0 mm spongioziniai sraigtai, pilnu sriegiu, pagaminti iš titano lydinio. Nuo 14 mm iki 30 mm kas 2 mm"]
["3.60.1.","Nuo 14 mm iki 30 mm kas 2 mm"]
["3.61.","Ø 4,0 mm spongioziniai sraigtai, pilnu sriegiu, pagaminti iš titano lydinio.",30,"vnt",4.6900000000000004,{"$f":"IF(ISBLANK(E1190),\"\", PRODUCT(C1190,E1190))","v":140.70000000000002},"30403132-30403170, katalogas 1, p. 81, Changzhou Kanghui Medical Innovation Co., Ltd. a Medtronic company","Ø 4,0 mm spongioziniai sraigtai, pilnu sriegiu, pagaminti iš titano lydinio. Nuo 32 mm iki 60 mm, 14 ilgių"]
["3.61.1.","Nuo 32 mm iki 60 mm ne mažiau 6 ilgių"]
["3.62.","Ø 4,5 mm kortikaliniai sraigtai, pilnu sriegiu, pagaminti iš titano lydinio.",200,"vnt",4.26,{"$f":"IF(ISBLANK(E1192),\"\", PRODUCT(C1192,E1192))","v":852},"30308116-30308144, katalogas 1, p. 138, Changzhou Kanghui Medical Innovation Co., Ltd. a Medtronic company","Ø 4,5 mm kortikaliniai sraigtai, pilnu sriegiu, pagaminti iš titano lydinio. Nuo 18 mm iki 44 mm kas 2 mm"]
["3.62.1.","Nuo 18 mm iki 44 mm kas 2 mm"]
["3.63.","Ø 4,5 mm kortikaliniai sraigtai, pilnu sriegiu, pagaminti iš titano lydinio.",60,"vnt",5,{"$f":"IF(ISBLANK(E1194),\"\", PRODUCT(C1194,E1194))","v":300},"30308146-30308160, katalogas 1, p. 138, Changzhou Kanghui Medical Innovation Co., Ltd. a Medtronic company","Ø 4,5 mm kortikaliniai sraigtai, pilnu sriegiu, pagaminti iš titano lydinio. Nuo 46 mm iki 60 mm kas 2 mm"]
["3.63.1.","Nuo 46 mm iki 60 mm kas 2 mm"]
["3.64.","Ø 5,0 mm užrakinami savisriegiai sraigtai, pilnu sriegiu, pagaminti iš titano lydinio. ",400,"vnt",19.95,{"$f":"IF(ISBLANK(E1196),\"\", PRODUCT(C1196,E1196))","v":7980},"31452014-31452040, katalogas 1, p. 87, Changzhou Kanghui Medical Innovation Co., Ltd. a Medtronic company","Ø 5,0 mm užrakinami savisriegiai sraigtai, pilnu sriegiu, pagaminti iš titano lydinio. Nuo 14 mm iki 40 mm kas 2 mm"]
["3.64.1.","Nuo 14 mm iki 40 mm kas 2 mm"]
["3.65.","Ø 5,0 mm užrakinami savisriegiai sraigtai, pilnu sriegiu, pagaminti iš titano lydinio. ",240,"vnt",23.94,{"$f":"IF(ISBLANK(E1198),\"\", PRODUCT(C1198,E1198))","v":5745.6},"31452042-31452050, katalogas 1, p. 87, Changzhou Kanghui Medical Innovation Co., Ltd. a Medtronic company","Ø 5,0 mm užrakinami savisriegiai sraigtai, pilnu sriegiu, pagaminti iš titano lydinio. Nuo 42 mm iki 50 mm kas 2 mm"]
["3.65.1.","Nuo 42 mm iki 50 mm kas 2 mm"]
["3.66.","Ø 5,0 mm užrakinami savisriegiai sraigtai, pilnu sriegiu, pagaminti iš titano lydinio. ",300,"vnt",25.76,{"$f":"IF(ISBLANK(E1200),\"\", PRODUCT(C1200,E1200))","v":7728.0000000000009},"31452055-31452090, katalogas 1, p. 87, Changzhou Kanghui Medical Innovation Co., Ltd. a Medtronic company","Ø 5,0 mm užrakinami savisriegiai sraigtai, pilnu sriegiu, pagaminti iš titano lydinio. Nuo 52 mm iki 90 mm, 8 ilgių"]
["3.66.1.","Nuo 52 mm iki 90 mm ne mažiau 8 ilgių"]
["3.67.","Instrumentai, skirti darbui su užrakinamų titaninių plokštelių sistema, naudojama su Ø 2,7 mm sraigtais. Privaloma pateikti 1 rinkinį panaudos būdu. Vieno rinkinio sudėtis:",1,"rinkinys",0,{"$f":"IF(ISBLANK(E1202),\"\", PRODUCT(C1202,E1202))","v":0},"287900, katalogas 1, p. 88, Changzhou Kanghui Medical Innovation Co., Ltd. a Medtronic company","Instrumentai, skirti darbui su užrakinamų titaninių plokštelių sistema, naudojama su Ø 2,7 mm sraigtais"]
["3.67.1.","Konteineris instrumentų sterilizavimui - 1 vnt"]
["3.67.2.","Sraigtų sterilizavimo konteineris - 1 vnt"]
["3.67.3.","Plokštelių sterilizavimo padėklas - 1 vnt"]
["3.67.4.","Ø 2,0 mm grąžto nukreipiklis - 10 vnt"]
["3.67.5.","Grąžtas Ø 2,0 mm - 20"]
["3.67.6.","Šešiakampės žvaigždės formos atsuktuvas, apribojantis priveržimo jėgą - 5 vnt"]
["3.67.7.","Ø 2,7 mm užrakinamų sraigtų laikymo įvorė - 5 vnt"]
["3.67.8.","Kiaurymės gylio matuoklis, matavimo skalė 10÷60 mm - 4 vnt"]
["3.67.9.","Atsuktuvas 2,7 mm užrakinamiems sraigtams, įsistatantis į elektrinį jėgos instrumentą - 10 vnt"]
["3.67.10.","Universali T formos rankena su instrumento greito pajungimo jungtimi - 5 vnt"]
["3.67.11.","Instrumentas sraigto su prasukta galvute išėmimui, tinkantis 2,7 mm skersmens sraigtams - 2 vnt"]
["3.67.12.","Grąžtas Ø 2,7 mm - 3 vnt"]
["3.67.13.","Sriegiklis Ø 2,7 mm - 5 vnt"]
["3.67.14.","Angos platintuvas kaule - 2 vnt"]
["3.67.15.","Specialus T formos atsuktuvas, skirtas užrakinamų sraigtų išsukimui - 15 vnt"]
["3.67.16.","Dvipusis grąžto kreiptuvas, tinkantis Ø 2,0 ir 2,7 mm grąžtams - 2 vnt"]
["3.68.","Instrumentai, skirti darbui su užrakinamų titaninių plokštelių sistema, naudojama su Ø 3,5 mm sraigtais. Privaloma pateikti 1 rinkinį. Vieno rinkinio sudėtis:",1,"rinkinys",0,{"$f":"IF(ISBLANK(E1219),\"\", PRODUCT(C1219,E1219))","v":0},"222900, katalogas 1, p. 91, Changzhou Kanghui Medical Innovation Co., Ltd. a Medtronic company","Instrumentai, skirti darbui su užrakinamų titaninių plokštelių sistema, naudojama su Ø 3,5 mm sraigtais. "]
["3.68.1.","Konteineris instrumentų sterilizavimui - 1 vnt"]
["3.68.2.","Dėklas 3,5 mm ir 4,0 mm skersmens sraigtams, įstatomas į instrumentų ir sraigtų sterilizavimo konteinerį, su sraigtų ilgio matuokle - 1 vnt "]
["3.68.3.","Universalus (dvipusis) grąžto kreiptuvas, tinkantis Ø 2,5 ir 3,5 mm grąžtams - 1 vnt"]
["3.68.4.","Dvipusis Ø 2,5 mm grąžto kreiptuvas su išcentruota anga viename iš dviejų kreiptuvo galų - 1 vnt"]
["3.68.5.","Instrumentas sraigto su prasukta galvute išėmimui, tinkantis 3,5 mm ir 4,0 mm skersmens sraigtams - 1 vnt"]
["3.68.6.","Grąžtas Ø 3,5 mm - 2 vnt"]
["3.68.7.","Grąžtas Ø 2,6 mm - 2 vnt"]
["3.68.8.","Grąžtas Ø 2,5 mm - 2 vnt"]
["3.68.9.","Aštrios žnyplės lūžgalių repozicijai ir fiksacijai, 145 mm ilgio, dantytais galais - 2 vnt"]
["3.68.10.","Aštrios žnyplės lūžgalių reparacijai ir fiksacijai, siauros, smailais galais - 1 vnt"]
["3.68.11.","Kiaurymės gylio matuoklis, matavimo skalė 0÷60 mm - 1 vnt"]
["3.68.12.","Trepanas lūžusio sraigto pašalinimui, Ø 6 mm - 1 vnt"]
["3.68.13.","Sriegiklis Ø 4,0 mm - 1 vnt"]
["3.68.14.","Sriegiklis Ø 3,5 mm - 1 vnt"]
["3.68.15.","Lenkikliai plokštelei, komplekte 2 vnt. - 1 vnt"]
["3.68.16.","Šešiabriaunis atsuktuvas, 195 mm ilgio, atstumas tarp šešiabriaunio plokštumų 2,5 mm - 1 vnt"]
["3.68.17.","Ø 3,5 mm kortikalinių sraigtų laikymo įvorė atsuktuvui - 1 vnt"]
["3.68.18.","Žnyplės, skirtos kaulo ir plokštelės fiksacijai, dantytais galais, 190 mm ilgio - 1 vnt"]
["3.68.19.","Ø 2,6 mm grąžto nukreipiklis, 60 mm ilgio - 2 vnt"]
["3.68.20.","Grąžtas su atrama gręžimo gylio apribojimui, Ø 2,6 mm, su gylio matavimo skale 12 ÷ 60 mm - 2 vnt"]
["3.68.21.","Ø 1,2 mm \"Kiršnerio\" vielų nukreipiklis - 1 vnt"]
["3.68.22.","Šešiakampės žvaigždės formos atsuktuvas Ø 3,5 mm užrakinamiems sraigtams, apribojantis priveržimo jėgą - 1 vnt"]
["3.68.23.","Užrakinamų sraigtų laikymo įvorė atsuktuvui - 1 vnt"]
["3.68.24.","Šešiakampės žvaigždės T formos atsuktuvas, skirtas užrakinamų sraigtų išsukimui - 1 vnt"]
["3.68.25.","Lenktas raktas su šešiakampiu galu, atstumas tarp šešiabriaunio plokštumų 2,5 mm - 1 vnt"]
["3.68.26.","Grąžtas metalui, skirtas prasukto sraigto galvutės nugręžimui - 1 vnt"]
["3.68.27.","Atsuktuvas 3,5 mm užrakinamiems sraigtams, įsistatantis į elektrinį jėgos instrumentą - 1 vnt"]
["3.68.28.","Kiršnerio viela su sriegiu ir aštriu trikampiu išgalandinimu, Ø 1,2 mm, 220 mm ilgio - 3 vnt"]
["3.69.","Instrumentai, skirti darbui su užrakinamų titaninių plokštelių sistema, naudojama su Ø 5,0 mm užrakinamais sraigtais. Privaloma pateikti 1 rinkinį. Vieno rinkinio sudėtis:",1,"rinkinys",0,{"$f":"IF(ISBLANK(E1248),\"\", PRODUCT(C1248,E1248))","v":0},"227900, katalogas 1, p. 95, Changzhou Kanghui Medical Innovation Co., Ltd. a Medtronic company","Instrumentai, skirti darbui su užrakinamų titaninių plokštelių sistema, naudojama su Ø 5,0 mm užrakinamais sraigtais"]
["3.69.1.","Konteineris, skirtas instrumentų ir sraigtų sterilizavimui - 1 vnt"]
["3.69.2.","Dėklas Ø 4,5 mm, 5,0 mm ir 6,5 mm sraigtams, įstatomas į instrumentų ir sraigtų sterilizavimo konteinerį; su sraigtų ilgio matuokle - 1 vnt"]
["3.69.3.","Plokštelių sterilizavimo konteineris - 1 vnt"]
["3.69.4.","Universalus (dvipusis) grąžto kreiptuvas, tinkantis Ø 6,5 mm ir Ø 3,2 mm grąžtams - 1 vnt"]
["3.69.5.","Universalus (dvipusis) grąžto kreiptuvas, tinkantis Ø 4,5 mm ir Ø 3,2 mm grąžtams - 1 vnt"]
["3.69.6.","Instrumentas sraigto su prasukta galvute išėmimui, tinkantis 5,0 mm skersmens sraigtams - 1 vnt"]
["3.69.7.","Grąžtas Ø 4,5 mm - 2 vnt"]
["3.69.8.","Grąžtas Ø 4,1 mm - 2 vnt"]
["3.69.9.","Grąžtas Ø 3,2 mm - 2 vnt"]
["3.69.10.","Aštrios žnyplės lūžgalių repozicijai ir fiksacijai, praplatintos, dantytais galais - 1 vnt"]
["3.69.11.","Aštrios žnyplės lūžgalių reparacijai ir fiksacijai, siauros, smailais galais - 1 vnt"]
["3.69.12.","Kiaurymės gylio matuoklis, matavimo skalė 10÷90 mm - 1 vnt"]
["3.69.13.","Universali T formos rankena su instrumento greito pajungimo  jungtimi su Ø 4,5 mm fiksacine kiauryme - 1 vnt"]
["3.69.14.","Trepanas lūžusio sraigto pašalinimui, Ø 8 mm - 1 vnt"]
["3.69.15.","Sriegiklis Ø 6,5 mm - 1 vnt"]
["3.69.16.","Sriegiklis Ø 4,5 mm - 1 vnt"]
["3.69.17.","Lenkikliai plokštelei, kairės pusės - 1 vnt"]
["3.69.18.","Lenkikliai plokštelei, dešinės pusės  - 1 vnt"]
["3.69.19.","Sunkaus svorio lenkiklis plokštelėms, su 290 ± 5,0 mm ilgio rankena, tinkantis iki 5 mm storio plokštelių lenkimui  1 vnt"]
["3.69.20.","Šešiabriaunis atsuktuvas, atstumas  tarp šešiabriaunio plokštumų 3,5 mm 1 vnt"]
["3.69.21.","Sraigtų laikymo įvorė -1 vnt"]
["3.69.22.","Žnyplės, skirtos kaulo ir plokštelės fiksacijai, dantytais galais -2 vnt"]
["3.69.23.","Ø 4,1 mm grąžto nukreipiklis, 100 ± 3,0 mm ilgio -3 vnt"]
["3.69.24.","Grąžtas su atrama gręžimo gylio apribojimui, Ø 4,1 mm, su gylio matavimo skale 8 ÷ 90 mm -2 vnt"]
["3.69.25.","Ø 2,0 mm \"Kiršnerio\" vielų nukreipiklis -1 vnt"]
["3.69.26.","Šešiakampės žvaigždės formos atsuktuvas užrakinamiems sraigtams, apribojantis priveržimo jėgą - 1 vnt"]
["3.69.27.","Užrakinamų sraigtų laikymo įvorė -1 vnt"]
["3.69.28.","Specialus T formos atsuktuvas, skirtas užrakinamų sraigtų išsukimui - 1 vnt"]
["3.69.29.","Lenktas raktas su šešiakampiu galu, atstumas tarp šešiabriaunio plokštumų 3,5 mm -1 vnt"]
["3.69.30.","Atsuktuvas 5,0 mm užrakinamiems sraigtams, įsistatantis į elektrinį jėgos instrumentą -1 vnt"]
["3.69.31.","Grąžtas metalui, skirtas prasukto sraigto galvutės nugręžimui - 1 vnt"]
["3.69.32.","Kiršnerio viela su aštriu trikampiu išgalandinimu, 2,0 mm skersmens, 230 mm ilgio -3 vnt"]
[null,null,null,null,"Suma be PVM",{"$f":"IF((COUNT(C1070:C1280)<>COUNT(F1070:F1280)),\"\", SUM(F1070:F1280))","v":88943.52},{"$f":"IF((COUNT(C1070:C1280)<>COUNT(F1070:F1280)),\"Neužpildytos visų objektų kainos\", \"\")","v":""}]
[null,null,null,null,"PVM suma",4447.1400000000003]
[null,null,null,null,"Suma su PVM",{"$f":"IF(ISBLANK(F1282), \"\", SUM(F1281:F1282))","v":93390.66}]

{"sheet":"Subtiekėjai","index":1,"n_rows":100,"n_cols":9,"rows_kept":100,"cut":false,"hidden":false,"merged":[[32,0,32,3],[32,4,32,9],[19,0,19,10],[16,1,16,3],[15,1,15,3],[22,0,22,9],[23,0,23,9],[25,0,25,9],[29,0,29,3],[29,4,29,9],[17,1,17,3],[17,4,17,5],[17,6,17,7],[17,8,17,9],[21,0,21,3],[21,4,21,9],[14,1,14,3],[15,4,15,5],[16,4,16,5],[8,0,8,1],[8,2,8,4],[8,5,8,7],[12,6,12,7],[13,6,13,7],[14,6,14,7],[15,6,15,7],[16,6,16,7],[13,1,13,3],[12,1,12,3],[12,4,12,5],[13,4,13,5],[14,4,14,5],[8,8,8,9],[10,0,10,9],[6,0,6,1],[6,2,6,4],[6,5,6,7],[6,8,6,9],[7,0,7,1],[7,2,7,4],[7,5,7,7],[7,8,7,9],[1,0,1,10],[5,0,5,1],[5,2,5,4],[5,5,5,7],[5,8,5,9],[4,0,4,1],[4,2,4,4],[4,5,4,7],[4,8,4,9],[3,0,3,1],[3,2,3,4],[3,5,3,7],[3,8,3,9],[12,8,12,9],[13,8,13,9],[14,8,14,9],[15,8,15,9],[16,8,16,9]]}
[]
["Subtiekėjai ir jiems perduodama vykdyti pirkimo sutarties dalis:"]
[]
["Eil. Nr",null,"Subtiekėjo pavadinimas",null,null,"Pirkimo objekto dalies, perduodamos vykdyti subtiekėjui, aprašymas",null,null,"Procentas perduodamos vykdyti pirkimo objekto dalies nuo pasiūlymo kainos su PVM (pildoma, jei ūkio subjektas vykdys sutartį)"]
[]
[]
[]
[]
[]
[]
["Kartu su pasiūlymu pateikiami šie dokumentai:"]
[]
["Eil.Nr.","Dokumentas",null,null,"Ar dokumnetas konfidencialus? (Taip/Ne)",null,"Prisegtos bylos (failo) pavadinimas ",null,"Paaiškinimas, kokia konkreti informacija dokumente yra konfidenciali"]
[1,"EBVPD",null,null,"Ne",null,"EBVPD"]
[2,"Katalogas 1",null,null,"Taip",null,"Katalogas 1 - KONFIDENCIALU",null,"Prekių parametrai"]
[3,"Katalogas 2",null,null,"Taip",null,"Katalogas 2 - KONFIDENCIALU",null,"Prekių parametrai"]
[4,"Katalogas 3",null,null,"Taip",null,"Katalogas 3 - KONFIDENCIALU",null,"Prekių parametrai"]
[5,"Katalogas 4",null,null,"Taip",null,"Katalogas 4 - KONFIDENCIALU",null,"Prekių parametrai"]
[]
["Pasirašydamas šį pasiūlymą, tvirtintu, kad:\n1) pasiūlymo dokumentuose pateikti duomenys yra tikri;\n2) siūlomas Pirkimo objektas visiškai atitinka Pirkimo dokumentuose nustatytus reikalavimus;\n3) sutinku su visomis Pirkimo dokumentuose nustatytomis sąlygomis;\n4) pasiūlymas galioja iki termino, nustatyto Pirkimo dokumentuose; \n5) mes esame / nesame (nereikalingą išbraukti) laikomi asocijuotais (susijusiais) su Perkančiuoju subjektu pagal Lietuvos Respublikoje galiojančių teisės aktų (Lietuvos Respublikos pelno mokesčio, Lietuvos Respublikos pridėtinės vertės mokesčio ir Lietuvos Respublikos gyventojų pajamų mokesčio įstatymų) nuostatas; \n6) savo pasiūlymo galiojimą užtikrinsiu pagal Specialiųjų sąlygų 6.1 punktą (jei taikoma)."]
[]
["Pasiūlymo galiojimo užtikrinimui pateikiame :"]
[]
["(Nurodyti užtikrinimo būdą, dydį, dokumentus)"]
[]
["\nPasiūlymas galioja iki termino, nustatyto pirkimo dokumentuose.\n\nPasiūlymo neatskiriama dalis yra (rašoma, jeigu buvo reikalauta prie pasiūlymo pridėti atitinkamą dokumentą)"]
[]
[]
[]
["Tiekėjo arba jo įgalioto asmens pareigų pavadinimas",null,null,null,"Direktorius"]
[]
[]
["Pasirašančio asmens vardas ir pavardė",null,null,null,"Gintaras Vaitkevičius"]
[]
[]
[]
[]
[]
[]
[]
[]
[]
[]
[]
[]
[]
[]
[]
[]
[]
[]
[]
[]
[]
[]
[]
[]
[]
[]
[]
[]
[]
[]
[]
[]
[]
[]
[]
[]
[]
[]
[]
[]
[]
[]
[]
[]
[]
[]
[]
[]
[]
[]
[]
[]
[]
[]
[]
[]
[]
[]
[]
[]
[]
[]
[]
[]
[]
[]
["3410-2 2019-07-10 14:39:34"]